[Event "Live Chess"]
[Site "Chess.com"]
[Date "2024.06.02"]
[Round "-"]
[White "ameetghasi100"]
[Black "Pablo_dmp"]
[Result "1-0"]
[WhiteElo "2756"]
[BlackElo "1981"]
[TimeControl "300"]
[EndTime "8:03:04 PDT"]
[Termination "ameetghasi100 won by resignation"]

1. c4 {[%clk 0:04:59.5]} 1... e6 {[%clk 0:04:58.8]} 2. Nf3 {[%clk 0:04:59.4]}
2... d5 {[%clk 0:04:58.3]} 3. d4 {[%clk 0:04:59.3]} 3... a6 {[%clk 0:04:56.3]}
4. Nc3 {[%clk 0:04:58.9]} 4... dxc4 {[%clk 0:04:55.5]} 5. e4 {[%clk 0:04:58.6]}
5... b5 {[%clk 0:04:54.4]} 6. a4 {[%clk 0:04:58.2]} 6... b4 {[%clk 0:04:42]} 7.
Nb1 {[%clk 0:04:57.2]} 7... Bb7 {[%clk 0:04:39.2]} 8. Qc2 {[%clk 0:04:53.7]}
8... Nf6 {[%clk 0:04:32.8]} 9. e5 {[%clk 0:04:51.6]} 9... Nd5 {[%clk 0:04:26]}
10. Bxc4 {[%clk 0:04:50.1]} 10... Nb6 {[%clk 0:04:20.6]} 11. Be2 {[%clk
0:04:48.4]} 11... a5 {[%clk 0:04:18.6]} 12. Nbd2 {[%clk 0:04:47.1]} 12... Be7
{[%clk 0:04:16.4]} 13. h4 {[%clk 0:04:46.3]} 13... Nc6 {[%clk 0:03:53]} 14. Nb3
{[%clk 0:04:40.6]} 14... O-O {[%clk 0:03:04.7]} 15. Ng5 {[%clk 0:04:37.2]} 15...
g6 {[%clk 0:03:02.6]} 16. Be3 {[%clk 0:04:35.9]} 16... Nd5 {[%clk 0:02:59.6]}
17. Bd2 {[%clk 0:04:35]} 17... f6 {[%clk 0:02:51.1]} 18. Nxe6 {[%clk 0:04:33.9]}
18... Qd7 {[%clk 0:02:47.4]} 19. Nxf8 {[%clk 0:04:33.4]} 19... Rxf8 {[%clk
0:02:46.3]} 20. h5 {[%clk 0:04:29.8]} 20... fxe5 {[%clk 0:02:44.6]} 21. hxg6
{[%clk 0:04:29.1]} 21... Qf5 {[%clk 0:02:36.1]} 22. gxh7+ {[%clk 0:04:28.1]}
22... Kh8 {[%clk 0:02:34.9]} 23. Qxf5 {[%clk 0:04:27.7]} 23... Rxf5 {[%clk
0:02:34.2]} 24. dxe5 {[%clk 0:04:27.3]} 24... Nxe5 {[%clk 0:02:28.8]} 25. Nd4
{[%clk 0:04:26.1]} 25... Rf7 {[%clk 0:02:19.3]} 26. Nf3 {[%clk 0:04:23.4]} 26...
Ng6 {[%clk 0:02:11.1]} 27. Bc4 {[%clk 0:04:17.5]} 27... c6 {[%clk 0:02:07.5]}
28. O-O-O {[%clk 0:04:15.9]} 28... Bc5 {[%clk 0:02:05.4]} 29. Rde1 {[%clk
0:04:13.3]} 29... Bxf2 {[%clk 0:01:55.7]} 30. Re8+ {[%clk 0:04:12.4]} 30... Nf8
{[%clk 0:01:55.6]} 31. Bh6 {[%clk 0:04:11.4]} 31... Be3+ {[%clk 0:01:51.2]} 32.
Bxe3 {[%clk 0:04:10.1]} 32... Nxe3 {[%clk 0:01:51.1]} 33. Bxf7 {[%clk
0:04:09.7]} 1-0

[Event "Live Chess"]
[Site "Chess.com"]
[Date "2024.06.02"]
[Round "-"]
[White "stevochess11"]
[Black "NottheBishopSacrifice"]
[Result "0-1"]
[WhiteElo "1708"]
[BlackElo "2335"]
[TimeControl "300"]
[EndTime "8:03:05 PDT"]
[Termination "NottheBishopSacrifice won by resignation"]

1. d4 {[%clk 0:04:58]} 1... d5 {[%clk 0:04:58.5]} 2. Nf3 {[%clk 0:04:56.9]} 2...
Nf6 {[%clk 0:04:57.3]} 3. e3 {[%clk 0:04:51.9]} 3... e6 {[%clk 0:04:56]} 4. Bd3
{[%clk 0:04:49.5]} 4... Bd6 {[%clk 0:04:54.6]} 5. O-O {[%clk 0:04:40.5]} 5...
O-O {[%clk 0:04:53.6]} 6. Nbd2 {[%clk 0:04:37.6]} 6... b6 {[%clk 0:04:53.1]} 7.
b3 {[%clk 0:04:30.7]} 7... Bb7 {[%clk 0:04:52.3]} 8. Bb2 {[%clk 0:04:26.7]} 8...
Ne4 {[%clk 0:04:51.5]} 9. Ne5 {[%clk 0:04:22.8]} 9... Nxd2 {[%clk 0:04:47.4]}
10. Qh5 {[%clk 0:04:07.1]} 10... f5 {[%clk 0:04:42.4]} 11. g4 {[%clk 0:03:50]}
11... Ne4 {[%clk 0:04:39.7]} 12. gxf5 {[%clk 0:03:48.1]} 12... Rxf5 {[%clk
0:04:36.6]} 13. Qh3 {[%clk 0:03:44.4]} 13... Nd7 {[%clk 0:04:33.9]} 14. f3
{[%clk 0:03:41.3]} 14... Nxe5 {[%clk 0:04:28.6]} 15. dxe5 {[%clk 0:03:33.3]}
15... Bc5 {[%clk 0:04:23.9]} 16. fxe4 {[%clk 0:03:27.8]} 16... dxe4 {[%clk
0:04:20.7]} 17. Bc4 {[%clk 0:03:20.1]} 17... Rxf1+ {[%clk 0:04:17.4]} 18. Rxf1
{[%clk 0:03:16.1]} 18... Qg5+ {[%clk 0:04:16.6]} 19. Kh1 {[%clk 0:03:12]} 19...
Qxe3 {[%clk 0:04:11.4]} 20. Bxe6+ {[%clk 0:03:09.7]} 20... Kh8 {[%clk 0:04:09]}
21. Bf5 {[%clk 0:03:07.4]} 21... Qxh3 {[%clk 0:04:07]} 22. Bxh3 {[%clk
0:03:05.8]} 22... Re8 {[%clk 0:04:01.2]} 23. e6 {[%clk 0:03:03.1]} 23... e3+
{[%clk 0:03:57.4]} 24. Bg2 {[%clk 0:02:59.4]} 24... Bxg2+ {[%clk 0:03:56.6]} 25.
Kxg2 {[%clk 0:02:58.6]} 25... Rxe6 {[%clk 0:03:55.8]} 26. Bd4 {[%clk 0:02:55.8]}
26... h6 {[%clk 0:03:48.9]} 27. Bxc5 {[%clk 0:02:52.9]} 27... bxc5 {[%clk
0:03:48.8]} 28. Re1 {[%clk 0:02:52.2]} 28... Kh7 {[%clk 0:03:47]} 29. Kf3 {[%clk
0:02:49.3]} 29... Kg6 {[%clk 0:03:46.2]} 30. Rxe3 {[%clk 0:02:48]} 30... Rxe3+
{[%clk 0:03:45.1]} 31. Kxe3 {[%clk 0:02:47.9]} 31... Kf5 {[%clk 0:03:44.6]} 32.
Kf3 {[%clk 0:02:46.4]} 32... g5 {[%clk 0:03:43.1]} 33. h3 {[%clk 0:02:45]} 33...
h5 {[%clk 0:03:42.5]} 34. c3 {[%clk 0:02:43.5]} 34... g4+ {[%clk 0:03:41.6]} 35.
hxg4+ {[%clk 0:02:42.5]} 35... hxg4+ {[%clk 0:03:41.5]} 36. Kg3 {[%clk
0:02:41.3]} 36... Ke4 {[%clk 0:03:41.1]} 37. Kxg4 {[%clk 0:02:37.2]} 37... Kd3
{[%clk 0:03:39.8]} 0-1

[Event "Live Chess"]
[Site "Chess.com"]
[Date "2024.06.02"]
[Round "-"]
[White "bill77678"]
[Black "best137"]
[Result "1-0"]
[WhiteElo "1843"]
[BlackElo "1515"]
[TimeControl "300"]
[EndTime "8:03:11 PDT"]
[Termination "bill77678 won on time"]

1. e4 {[%clk 0:04:57.8]} 1... c6 {[%clk 0:04:59.2]} 2. d4 {[%clk 0:04:56]} 2...
d5 {[%clk 0:04:58.9]} 3. exd5 {[%clk 0:04:55.9]} 3... cxd5 {[%clk 0:04:58.4]} 4.
Bd3 {[%clk 0:04:55.5]} 4... Nc6 {[%clk 0:04:58]} 5. c3 {[%clk 0:04:55]} 5... Nf6
{[%clk 0:04:57.3]} 6. Bf4 {[%clk 0:04:54.4]} 6... Bg4 {[%clk 0:04:56.7]} 7. Qb3
{[%clk 0:04:53.6]} 7... Qc8 {[%clk 0:04:41.8]} 8. Nd2 {[%clk 0:04:50.7]} 8... e6
{[%clk 0:04:39.2]} 9. Ngf3 {[%clk 0:04:49.5]} 9... Be7 {[%clk 0:04:33.7]} 10.
O-O {[%clk 0:04:48.4]} 10... O-O {[%clk 0:04:32.5]} 11. Rfe1 {[%clk 0:04:47.2]}
11... Re8 {[%clk 0:04:26.2]} 12. Ne5 {[%clk 0:04:44.2]} 12... Nxe5 {[%clk
0:04:22.3]} 13. dxe5 {[%clk 0:04:41.4]} 13... Nh5 {[%clk 0:04:14.4]} 14. Be3
{[%clk 0:04:34.5]} 14... a5 {[%clk 0:03:49.7]} 15. h3 {[%clk 0:04:32.3]} 15...
a4 {[%clk 0:03:47.8]} 16. Qc2 {[%clk 0:04:30]} 16... Bf5 {[%clk 0:03:40.9]} 17.
Bxf5 {[%clk 0:04:28.7]} 17... exf5 {[%clk 0:03:40.8]} 18. Qd1 {[%clk 0:04:17.3]}
18... f4 {[%clk 0:03:35.7]} 19. Bd4 {[%clk 0:04:06.9]} 19... g6 {[%clk
0:03:21.8]} 20. Qf3 {[%clk 0:03:53.8]} 20... Qe6 {[%clk 0:02:45.1]} 21. Nf1
{[%clk 0:03:47]} 21... b5 {[%clk 0:02:38.5]} 22. Nh2 {[%clk 0:03:45.3]} 22... b4
{[%clk 0:02:36.3]} 23. Ng4 {[%clk 0:03:42.6]} 23... bxc3 {[%clk 0:02:11.5]} 24.
bxc3 {[%clk 0:03:41.1]} 24... Bg5 {[%clk 0:02:08.3]} 25. Nf6+ {[%clk 0:03:23.4]}
25... Nxf6 {[%clk 0:01:53.7]} 26. exf6 {[%clk 0:03:22.3]} 26... Qxe1+ {[%clk
0:01:47.8]} 27. Rxe1 {[%clk 0:03:22.2]} 27... Rxe1+ {[%clk 0:01:46.8]} 28. Kh2
{[%clk 0:03:21.7]} 28... Rb8 {[%clk 0:00:49.7]} 29. h4 {[%clk 0:03:03.2]} 29...
Rbb1 {[%clk 0:00:35.5]} 30. g3 {[%clk 0:02:49.2]} 30... fxg3+ {[%clk 0:00:22.3]}
31. fxg3 {[%clk 0:02:48.2]} 31... Rb2+ {[%clk 0:00:07.5]} 32. Kh3 {[%clk
0:02:38.6]} 32... Rh1+ {[%clk 0:00:04.8]} 33. Kg4 {[%clk 0:02:37]} 33... Bh6
{[%clk 0:00:02.4]} 34. Qxd5 {[%clk 0:02:33]} 34... Bf8 {[%clk 0:00:00.9]} 35.
Qd8 {[%clk 0:02:21.6]} 1-0

[Event "Live Chess"]
[Site "Chess.com"]
[Date "2024.06.02"]
[Round "-"]
[White "ShanthamGrarks"]
[Black "Delacorta"]
[Result "0-1"]
[WhiteElo "1885"]
[BlackElo "1548"]
[TimeControl "300"]
[EndTime "8:03:18 PDT"]
[Termination "Delacorta won by resignation"]

1. d4 {[%clk 0:04:56.9]} 1... e6 {[%clk 0:04:58.5]} 2. Nc3 {[%clk 0:04:51.9]}
2... f5 {[%clk 0:04:57.5]} 3. e4 {[%clk 0:04:51.2]} 3... fxe4 {[%clk 0:04:55.5]}
4. f3 {[%clk 0:04:49.5]} 4... Nf6 {[%clk 0:04:54.5]} 5. fxe4 {[%clk 0:04:48.1]}
5... Bb4 {[%clk 0:04:53]} 6. Bg5 {[%clk 0:04:46.2]} 6... Bxc3+ {[%clk
0:04:51.6]} 7. bxc3 {[%clk 0:04:44.6]} 7... O-O {[%clk 0:04:48.3]} 8. Nf3 {[%clk
0:04:42.5]} 8... d6 {[%clk 0:04:46.2]} 9. Bd3 {[%clk 0:04:39.2]} 9... Nbd7
{[%clk 0:04:43.9]} 10. O-O {[%clk 0:04:37.7]} 10... Qe8 {[%clk 0:04:40.6]} 11.
Bh4 {[%clk 0:04:19.6]} 11... Qh5 {[%clk 0:04:30.3]} 12. Bg3 {[%clk 0:04:12.9]}
12... b6 {[%clk 0:04:26.3]} 13. e5 {[%clk 0:04:03.2]} 13... dxe5 {[%clk
0:04:22.1]} 14. dxe5 {[%clk 0:04:01.3]} 14... Ng4 {[%clk 0:04:14.9]} 15. Be4
{[%clk 0:03:48.1]} 15... Rb8 {[%clk 0:04:09.2]} 16. Bc6 {[%clk 0:03:26.8]} 16...
Ne3 {[%clk 0:03:56.9]} 17. Qd3 {[%clk 0:03:18.5]} 17... Nxf1 {[%clk 0:03:52.9]}
18. Rxf1 {[%clk 0:03:12.2]} 18... Nc5 {[%clk 0:03:43.8]} 19. Qc4 {[%clk
0:03:00.3]} 19... Bb7 {[%clk 0:03:16.4]} 20. Bxb7 {[%clk 0:02:54.8]} 20... Rxb7
{[%clk 0:03:14.5]} 21. Bf2 {[%clk 0:02:50]} 21... Qf7 {[%clk 0:02:49.3]} 22.
Bxc5 {[%clk 0:02:47.4]} 22... bxc5 {[%clk 0:02:47.5]} 23. Qxc5 {[%clk
0:02:32.2]} 23... Rb2 {[%clk 0:02:45.8]} 24. Nd2 {[%clk 0:02:30.7]} 24... Qe8
{[%clk 0:02:25.1]} 25. Rxf8+ {[%clk 0:02:25.4]} 25... Qxf8 {[%clk 0:02:22.5]}
26. Qc6 {[%clk 0:02:14.4]} 26... Rxc2 {[%clk 0:02:20.6]} 27. Qxe6+ {[%clk
0:02:12.8]} 27... Kh8 {[%clk 0:02:17.8]} 28. Nf3 {[%clk 0:01:36.1]} 28... Qb8
{[%clk 0:01:49.5]} 29. h3 {[%clk 0:01:32.5]} 29... Qb6+ {[%clk 0:01:34.4]} 30.
Kh2 {[%clk 0:01:30.5]} 30... Qxe6 {[%clk 0:01:32.7]} 31. Nd4 {[%clk 0:01:26.8]}
31... Qxe5+ {[%clk 0:01:30.7]} 0-1

[Event "Live Chess"]
[Site "Chess.com"]
[Date "2024.06.02"]
[Round "-"]
[White "raimundklein"]
[Black "ClassyChameleon"]
[Result "1-0"]
[WhiteElo "1603"]
[BlackElo "1523"]
[TimeControl "300"]
[EndTime "8:03:27 PDT"]
[Termination "raimundklein won on time"]

1. e4 {[%clk 0:04:57.5]} 1... e5 {[%clk 0:04:59.4]} 2. Nf3 {[%clk 0:04:56.2]}
2... Nc6 {[%clk 0:04:58.2]} 3. Bc4 {[%clk 0:04:55.3]} 3... Nf6 {[%clk
0:04:56.2]} 4. d3 {[%clk 0:04:53.9]} 4... Bc5 {[%clk 0:04:54.8]} 5. O-O {[%clk
0:04:51.8]} 5... O-O {[%clk 0:04:53.4]} 6. c3 {[%clk 0:04:51]} 6... a6 {[%clk
0:04:52.7]} 7. b4 {[%clk 0:04:48.2]} 7... Ba7 {[%clk 0:04:51.6]} 8. a4 {[%clk
0:04:44.6]} 8... d6 {[%clk 0:04:32.5]} 9. h3 {[%clk 0:04:43]} 9... h6 {[%clk
0:04:28.5]} 10. Nbd2 {[%clk 0:04:36.1]} 10... b5 {[%clk 0:04:05.1]} 11. axb5
{[%clk 0:04:33.3]} 11... axb5 {[%clk 0:04:04.1]} 12. Bxb5 {[%clk 0:04:29.4]}
12... Bd7 {[%clk 0:03:55.1]} 13. Re1 {[%clk 0:04:19.6]} 13... Bxf2+ {[%clk
0:03:50.7]} 14. Kxf2 {[%clk 0:04:12]} 14... Rxa1 {[%clk 0:03:50.6]} 15. Nb3
{[%clk 0:04:05.7]} 15... Ra2+ {[%clk 0:03:44.6]} 16. Kg1 {[%clk 0:03:59.3]}
16... Na7 {[%clk 0:03:38.6]} 17. Bc4 {[%clk 0:03:53]} 17... Bb5 {[%clk
0:03:32.6]} 18. Na5 {[%clk 0:03:44.5]} 18... Bxc4 {[%clk 0:03:31]} 19. Nxc4
{[%clk 0:03:43.9]} 19... Nb5 {[%clk 0:03:28.3]} 20. Qb3 {[%clk 0:03:40.1]} 20...
Ra8 {[%clk 0:03:20.4]} 21. d4 {[%clk 0:03:32.5]} 21... exd4 {[%clk 0:03:17.2]}
22. cxd4 {[%clk 0:03:32.3]} 22... Nh5 {[%clk 0:03:13.6]} 23. e5 {[%clk 0:03:22]}
23... dxe5 {[%clk 0:03:09.7]} 24. dxe5 {[%clk 0:03:09.8]} 24... Ng3 {[%clk
0:02:51]} 25. Be3 {[%clk 0:02:57.9]} 25... Re8 {[%clk 0:02:32.7]} 26. Rd1 {[%clk
0:02:44.6]} 26... Qc8 {[%clk 0:02:10.5]} 27. Rc1 {[%clk 0:02:33.4]} 27... Ne2+
{[%clk 0:02:07.7]} 28. Kf2 {[%clk 0:02:30.8]} 28... Nxc1 {[%clk 0:02:07.6]} 29.
Bxc1 {[%clk 0:02:30.1]} 29... Qd7 {[%clk 0:01:48.7]} 30. Be3 {[%clk 0:02:27.9]}
30... Ra1 {[%clk 0:01:33.6]} 31. Qb2 {[%clk 0:02:13.7]} 31... Rd1 {[%clk
0:01:18]} 32. Bc5 {[%clk 0:01:30.6]} 32... c6 {[%clk 0:01:01.2]} 33. Ne3 {[%clk
0:01:28.8]} 33... Rd3 {[%clk 0:00:45.9]} 34. Qc2 {[%clk 0:01:22.2]} 34... Na3
{[%clk 0:00:27.1]} 35. Qe2 {[%clk 0:01:11.6]} 35... Nb5 {[%clk 0:00:17.6]} 36.
Nc4 {[%clk 0:01:01.7]} 36... Nc3 {[%clk 0:00:10.7]} 37. Qe1 {[%clk 0:00:58.6]}
37... Rd1 {[%clk 0:00:08.8]} 38. Qe3 {[%clk 0:00:54]} 38... Kh8 {[%clk 0:00:05]}
39. Nd6 {[%clk 0:00:50.9]} 39... Re6 {[%clk 0:00:03.1]} 40. Qxc3 {[%clk
0:00:47.2]} 1-0

[Event "Live Chess"]
[Site "Chess.com"]
[Date "2024.06.02"]
[Round "-"]
[White "educatedlad"]
[Black "Hoogleboogle"]
[Result "1-0"]
[WhiteElo "1746"]
[BlackElo "1251"]
[TimeControl "300"]
[EndTime "8:03:41 PDT"]
[Termination "educatedlad won by checkmate"]

1. d4 {[%clk 0:04:59.2]} 1... d5 {[%clk 0:04:47.5]} 2. c4 {[%clk 0:04:57.5]}
2... Nf6 {[%clk 0:04:43.3]} 3. cxd5 {[%clk 0:04:56]} 3... Nxd5 {[%clk
0:04:36.2]} 4. Nf3 {[%clk 0:04:54.9]} 4... e6 {[%clk 0:04:35]} 5. e4 {[%clk
0:04:54.4]} 5... Nf6 {[%clk 0:04:29.2]} 6. Nc3 {[%clk 0:04:52.1]} 6... Bb4
{[%clk 0:04:26.4]} 7. e5 {[%clk 0:04:51.3]} 7... Nd5 {[%clk 0:03:49.8]} 8. Bd2
{[%clk 0:04:47.3]} 8... c5 {[%clk 0:03:38.3]} 9. Nxd5 {[%clk 0:04:45.1]} 9...
exd5 {[%clk 0:03:34.3]} 10. Bxb4 {[%clk 0:04:40.2]} 10... cxb4 {[%clk
0:03:32.5]} 11. Bd3 {[%clk 0:04:40.1]} 11... O-O {[%clk 0:03:29.2]} 12. h4
{[%clk 0:04:35.8]} 12... h5 {[%clk 0:03:26]} 13. Bh7+ {[%clk 0:04:26.9]} 13...
Kxh7 {[%clk 0:03:19.4]} 14. Ng5+ {[%clk 0:04:25.7]} 14... Kg8 {[%clk 0:03:18.4]}
15. Qxh5 {[%clk 0:04:24.1]} 15... Qxg5 {[%clk 0:03:06]} 16. hxg5 {[%clk
0:04:21.8]} 16... f6 {[%clk 0:03:02.7]} 17. g6 {[%clk 0:04:19.8]} 17... Rf7
{[%clk 0:02:58.3]} 18. Qh8# {[%clk 0:04:18.3]} 1-0

[Event "Live Chess"]
[Site "Chess.com"]
[Date "2024.06.02"]
[Round "-"]
[White "kylet1990"]
[Black "Colm_Buckley"]
[Result "0-1"]
[WhiteElo "766"]
[BlackElo "1879"]
[TimeControl "300"]
[EndTime "8:03:44 PDT"]
[Termination "Colm_Buckley won by resignation"]

1. e4 {[%clk 0:04:54.1]} 1... b6 {[%clk 0:04:58.9]} 2. Bc4 {[%clk 0:04:52.4]}
2... Bb7 {[%clk 0:04:57.4]} 3. Nc3 {[%clk 0:04:50.1]} 3... e6 {[%clk 0:04:54]}
4. d4 {[%clk 0:04:47.4]} 4... d5 {[%clk 0:04:52.8]} 5. e5 {[%clk 0:04:44.2]}
5... dxc4 {[%clk 0:04:46.1]} 6. Nf3 {[%clk 0:04:35.7]} 6... Bxf3 {[%clk
0:04:41.9]} 7. Qxf3 {[%clk 0:04:35]} 7... Nd7 {[%clk 0:04:29.7]} 8. Nb5 {[%clk
0:04:32.3]} 8... c6 {[%clk 0:04:01.5]} 9. Qxc6 {[%clk 0:04:26.9]} 9... Rc8
{[%clk 0:03:56.6]} 10. Qb7 {[%clk 0:04:18.9]} 10... Nh6 {[%clk 0:03:40.8]} 11.
Nxa7 {[%clk 0:04:15.2]} 11... Rb8 {[%clk 0:03:27.4]} 12. Qa6 {[%clk 0:04:06.2]}
12... Qc7 {[%clk 0:03:18.6]} 13. Be3 {[%clk 0:03:56.6]} 13... Nf5 {[%clk
0:03:14.4]} 14. O-O {[%clk 0:03:47.8]} 14... Nxe3 {[%clk 0:03:11.4]} 15. fxe3
{[%clk 0:03:46.5]} 15... Ra8 {[%clk 0:03:10.4]} 16. Nb5 {[%clk 0:03:17.7]} 16...
Rxa6 {[%clk 0:02:28.5]} 17. Nxc7+ {[%clk 0:03:16.2]} 17... Kd8 {[%clk
0:02:28.1]} 18. Nxa6 {[%clk 0:03:14.7]} 18... Kc8 {[%clk 0:02:24.6]} 19. Nb4
{[%clk 0:03:12.2]} 19... Bxb4 {[%clk 0:02:21.4]} 20. Rxf7 {[%clk 0:03:10.3]}
20... g6 {[%clk 0:02:16.6]} 21. c3 {[%clk 0:03:06.1]} 21... Rf8 {[%clk
0:02:04.9]} 22. Rxf8+ {[%clk 0:03:01.4]} 22... Bxf8 {[%clk 0:02:03.8]} 23. Rf1
{[%clk 0:02:59.6]} 23... Kd8 {[%clk 0:02:01.7]} 24. g3 {[%clk 0:02:57.9]} 24...
Ke8 {[%clk 0:02:00]} 25. Rf4 {[%clk 0:02:54.4]} 25... Bh6 {[%clk 0:01:58.1]} 26.
Rh4 {[%clk 0:02:51.3]} 26... Bxe3+ {[%clk 0:01:56.3]} 27. Kf1 {[%clk 0:02:50.1]}
27... h5 {[%clk 0:01:54.2]} 28. Ke2 {[%clk 0:02:44.2]} 28... Bc1 {[%clk
0:01:47.9]} 29. b3 {[%clk 0:02:41.1]} 29... cxb3 {[%clk 0:01:43.4]} 30. axb3
{[%clk 0:02:39.6]} 30... b5 {[%clk 0:01:40.2]} 31. c4 {[%clk 0:02:35.4]} 31...
bxc4 {[%clk 0:01:38.3]} 32. bxc4 {[%clk 0:02:33.6]} 32... Nb6 {[%clk 0:01:37.5]}
33. c5 {[%clk 0:02:28.8]} 33... Nd5 {[%clk 0:01:36.5]} 34. Kd1 {[%clk
0:02:23.3]} 34... Bb2 {[%clk 0:01:29.3]} 35. g4 {[%clk 0:02:21.4]} 35... Ne3+
{[%clk 0:01:22]} 36. Kd2 {[%clk 0:02:18.2]} 36... Nxg4 {[%clk 0:01:20.4]} 37.
Kc2 {[%clk 0:02:15.9]} 37... Bxd4 {[%clk 0:01:19]} 38. c6 {[%clk 0:02:14.1]}
38... Bxe5 {[%clk 0:01:17.9]} 39. Rh3 {[%clk 0:02:11.3]} 39... Kd8 {[%clk
0:01:15.4]} 40. Ra3 {[%clk 0:02:06.8]} 40... Kc7 {[%clk 0:01:13.4]} 41. Ra5
{[%clk 0:02:00.4]} 41... Kxc6 {[%clk 0:01:11.4]} 42. Kd3 {[%clk 0:01:56]} 42...
Bxh2 {[%clk 0:01:08.5]} 43. Ke4 {[%clk 0:01:54.5]} 43... Nf6+ {[%clk 0:01:04.6]}
44. Kd4 {[%clk 0:01:50]} 44... Kd6 {[%clk 0:01:00.7]} 45. Ra6+ {[%clk
0:01:47.6]} 45... Ke7 {[%clk 0:00:59.9]} 46. Kc5 {[%clk 0:01:44.1]} 46... Ne4+
{[%clk 0:00:56.2]} 47. Kc6 {[%clk 0:01:38.7]} 47... Kf6 {[%clk 0:00:53.6]} 48.
Kd7 {[%clk 0:01:35.5]} 48... Nc5+ {[%clk 0:00:51.8]} 0-1

[Event "Live Chess"]
[Site "Chess.com"]
[Date "2024.06.02"]
[Round "-"]
[White "missedJariChance"]
[Black "wadsy27"]
[Result "0-1"]
[WhiteElo "1364"]
[BlackElo "2604"]
[TimeControl "300"]
[EndTime "8:03:46 PDT"]
[Termination "wadsy27 won by resignation"]

1. d4 {[%clk 0:04:54.5]} 1... Nf6 {[%clk 0:04:58.3]} 2. c4 {[%clk 0:04:50.1]}
2... c5 {[%clk 0:04:58.2]} 3. d5 {[%clk 0:04:48.2]} 3... e6 {[%clk 0:04:57.8]}
4. Nc3 {[%clk 0:04:45.3]} 4... exd5 {[%clk 0:04:57.5]} 5. cxd5 {[%clk
0:04:44.2]} 5... d6 {[%clk 0:04:57.4]} 6. Nf3 {[%clk 0:04:38.1]} 6... g6 {[%clk
0:04:54.7]} 7. Bg5 {[%clk 0:04:36.1]} 7... h6 {[%clk 0:04:52.8]} 8. Bh4 {[%clk
0:04:34.4]} 8... g5 {[%clk 0:04:52.1]} 9. Bg3 {[%clk 0:04:31.2]} 9... Nh5 {[%clk
0:04:51.5]} 10. e3 {[%clk 0:04:13.8]} 10... Nxg3 {[%clk 0:04:49.8]} 11. hxg3
{[%clk 0:04:12.5]} 11... Bg7 {[%clk 0:04:49.4]} 12. Qc2 {[%clk 0:03:54.9]} 12...
a6 {[%clk 0:04:45.2]} 13. Bd3 {[%clk 0:03:43]} 13... b5 {[%clk 0:04:41.9]} 14.
O-O {[%clk 0:03:32.5]} 14... Nd7 {[%clk 0:04:38]} 15. Rfe1 {[%clk 0:03:17.6]}
15... Nf6 {[%clk 0:04:32.3]} 16. Bf5 {[%clk 0:03:10.9]} 16... Bxf5 {[%clk
0:04:27.8]} 17. Qxf5 {[%clk 0:03:08.9]} 17... Qd7 {[%clk 0:04:27.4]} 18. Qxd7+
{[%clk 0:02:59.7]} 18... Kxd7 {[%clk 0:04:25.7]} 19. Rad1 {[%clk 0:02:49.7]}
19... Ng4 {[%clk 0:04:22.5]} 20. e4 {[%clk 0:02:40]} 20... Ne5 {[%clk
0:04:20.2]} 21. Nh2 {[%clk 0:02:29.9]} 21... Nc4 {[%clk 0:04:16.6]} 22. b3
{[%clk 0:02:10.5]} 22... Bxc3 {[%clk 0:04:13.7]} 23. Re3 {[%clk 0:02:05.3]}
23... Nxe3 {[%clk 0:04:11.7]} 0-1

[Event "Live Chess"]
[Site "Chess.com"]
[Date "2024.06.02"]
[Round "-"]
[White "bill77678"]
[Black "Ocelot32"]
[Result "1-0"]
[WhiteElo "1844"]
[BlackElo "1385"]
[TimeControl "300"]
[EndTime "8:03:48 PDT"]
[Termination "bill77678 won by resignation"]

1. e4 {[%clk 0:04:58.1]} 1... e6 {[%clk 0:04:58.7]} 2. d4 {[%clk 0:04:56.9]}
2... d5 {[%clk 0:04:57.3]} 3. Nc3 {[%clk 0:04:56.3]} 3... dxe4 {[%clk 0:04:56]}
4. Nxe4 {[%clk 0:04:56.2]} 4... Nd7 {[%clk 0:04:55]} 5. Nf3 {[%clk 0:04:53.7]}
5... Ngf6 {[%clk 0:04:53.6]} 6. Bd3 {[%clk 0:04:52.2]} 6... Be7 {[%clk
0:04:51.7]} 7. O-O {[%clk 0:04:51.2]} 7... b6 {[%clk 0:04:50.6]} 8. c3 {[%clk
0:04:50]} 8... Bb7 {[%clk 0:04:49.6]} 9. Re1 {[%clk 0:04:47.4]} 9... O-O {[%clk
0:04:48.5]} 10. Qc2 {[%clk 0:04:46]} 10... Nc5 {[%clk 0:04:46.8]} 11. Nxc5
{[%clk 0:04:44.3]} 1-0

[Event "Live Chess"]
[Site "Chess.com"]
[Date "2024.06.02"]
[Round "-"]
[White "NAZRIZ1977"]
[Black "McFim"]
[Result "1/2-1/2"]
[WhiteElo "2075"]
[BlackElo "1784"]
[TimeControl "300"]
[EndTime "8:04:02 PDT"]
[Termination "Game drawn by repetition"]

1. d4 {[%clk 0:04:57.5]} 1... d5 {[%clk 0:04:58.4]} 2. c4 {[%clk 0:04:56.6]}
2... e6 {[%clk 0:04:55.4]} 3. Nc3 {[%clk 0:04:55.8]} 3... Nf6 {[%clk 0:04:53.7]}
4. Bg5 {[%clk 0:04:53.5]} 4... Be7 {[%clk 0:04:52.3]} 5. e3 {[%clk 0:04:52.7]}
5... h6 {[%clk 0:04:50.9]} 6. Bh4 {[%clk 0:04:51.6]} 6... O-O {[%clk 0:04:49.3]}
7. Nf3 {[%clk 0:04:50.6]} 7... b6 {[%clk 0:04:48.3]} 8. Bd3 {[%clk 0:04:49.6]}
8... Bb7 {[%clk 0:04:47.4]} 9. Qc1 {[%clk 0:04:48.6]} 9... Nbd7 {[%clk
0:04:45.7]} 10. g4 {[%clk 0:04:45.8]} 10... dxc4 {[%clk 0:04:44.2]} 11. Bxc4
{[%clk 0:04:42.5]} 11... c5 {[%clk 0:04:40]} 12. Rg1 {[%clk 0:04:38.1]} 12...
Bxf3 {[%clk 0:04:37.4]} 13. g5 {[%clk 0:04:37.3]} 13... hxg5 {[%clk 0:04:35.8]}
14. Bxg5 {[%clk 0:04:33.2]} 14... g6 {[%clk 0:04:25.9]} 15. e4 {[%clk
0:04:24.8]} 15... Nxe4 {[%clk 0:04:15.2]} 16. Bh6 {[%clk 0:04:12.4]} 16... Re8
{[%clk 0:04:07.8]} 17. Qf4 {[%clk 0:04:04.3]} 17... Nxc3 {[%clk 0:03:56.1]} 18.
Bxe6 {[%clk 0:03:33.1]} 18... Bf6 {[%clk 0:03:31.3]} 19. Rxg6+ {[%clk
0:03:24.1]} 19... Kh8 {[%clk 0:03:29.6]} 20. Bg7+ {[%clk 0:02:38.3]} 20... Bxg7
{[%clk 0:03:19.8]} 21. Rh6+ {[%clk 0:02:37.1]} 21... Bxh6 {[%clk 0:03:12.8]} 22.
Qxh6+ {[%clk 0:02:36]} 22... Kg8 {[%clk 0:03:11.8]} 23. Qg6+ {[%clk 0:02:34]}
23... Kh8 {[%clk 0:03:08.5]} 24. Qh6+ {[%clk 0:02:33.3]} 24... Kg8 {[%clk
0:03:06.9]} 25. Qg6+ {[%clk 0:02:32.7]} 25... Kh8 {[%clk 0:03:05.2]} 26. Qh6+
{[%clk 0:02:32.1]} 1/2-1/2